bitfinex-derivatives/quotes_BTCF0:USTF0_20251214
["timestamp","ask_amount","ask_price","bid_price","bid_amount"]
[1765683511751,0.05323914,90301.0,90300.0,0.05709]
[1765683515358,0.10917914,90301.0,90300.0,0.05709]
[1765683542979,0.05323914,90301.0,90300.0,0.05709]
[1765683543487,0.10191914,90301.0,90300.0,0.05709]
[1765683572024,0.12850914,90301.0,90300.0,0.05709]
[1765683607135,0.02404914,90301.0,90300.0,0.05709]
[1765683607448,0.11243,90309.0,90308.0,0.0959423]
[1765683607647,0.13636809,90309.0,90308.0,0.0959423]
[1765683608736,0.13836809,90309.0,90308.0,0.0959423]
[1765683612938,0.13836809,90309.0,90308.0,0.0547323]
[1765683614647,0.19817816,90309.0,90308.0,0.0547323]
[1765683614947,0.13836809,90309.0,90308.0,0.0547323]
[1765683615449,0.19817816,90309.0,90308.0,0.0547323]
[1765683617045,0.13836809,90309.0,90308.0,0.0547323]
[1765683618255,0.13836809,90309.0,90308.0,0.0959423]
[1765683619354,0.19817816,90309.0,90308.0,0.0959423]
[1765683619547,0.13836809,90309.0,90308.0,0.0959423]
[1765683625556,0.13836043,90309.0,90308.0,0.0959423]
[1765683644555,0.13836043,90309.0,90308.0,0.4567423]
[1765683646065,0.13836043,90309.0,90308.0,0.0959423]
[1765683646266,0.13836043,90309.0,90308.0,0.4567423]
[1765683646468,0.13836043,90309.0,90308.0,0.0959423]
[1765683646668,0.13836043,90309.0,90308.0,0.4567423]
[1765683657769,0.13836043,90309.0,90308.0,0.0959423]
[1765683681703,0.13836043,90309.0,90308.0,0.4567423]
[1765683690696,0.13836043,90309.0,90308.0,0.0959423]
[1765683690995,0.13836043,90309.0,90308.0,0.4567423]
[1765683692002,0.13836043,90309.0,90308.0,0.0959423]
[1765683692203,0.13836043,90309.0,90308.0,0.4567423]
[1765683693703,0.13836043,90309.0,90308.0,0.0959423]
[1765683693904,0.13836043,90309.0,90308.0,0.4567423]
[1765683707615,0.13836043,90309.0,90308.0,0.0959423]
[1765683707812,0.13836043,90309.0,90308.0,0.4567423]
[1765683711613,0.13836043,90309.0,90308.0,0.0959423]
[1765683711817,0.13823573,90309.0,90308.0,0.4567423]
[1765683712718,0.13823573,90309.0,90308.0,0.0959423]
[1765683712919,0.13823573,90309.0,90308.0,0.4567423]
[1765683715520,0.13823573,90309.0,90308.0,0.0959423]
[1765683715820,0.13823573,90309.0,90308.0,0.4567423]
[1765683719623,0.13823573,90309.0,90308.0,0.0959423]
[1765683719814,0.13823573,90309.0,90308.0,0.4567423]
[1765683720515,0.13823573,90309.0,90308.0,0.0959423]
[1765683720716,0.13823573,90309.0,90308.0,0.4567423]
[1765683727525,0.13823573,90309.0,90308.0,0.0959423]
[1765683727726,0.13823573,90309.0,90308.0,0.4567423]
[1765683734530,0.13823573,90309.0,90308.0,0.0959423]
[1765683734728,0.13823573,90309.0,90308.0,0.4567423]
[1765683736034,0.13823573,90309.0,90308.0,0.0959423]
[1765683736331,0.13823573,90309.0,90308.0,0.4567423]
[1765683736523,0.13823573,90309.0,90308.0,0.0959423]
[1765683736722,0.13823573,90309.0,90308.0,0.4567423]
[1765683738537,0.13723573,90309.0,90308.0,0.4567423]
[1765683742425,0.13723573,90309.0,90308.0,0.0959423]
[1765683742632,0.13723573,90309.0,90308.0,0.4567423]
[1765683743826,0.13723573,90309.0,90308.0,0.08487]
[1765683744319,0.13723573,90309.0,90308.0,0.44567]
[1765683758634,0.13723573,90309.0,90308.0,0.08487]
[1765683758836,0.13723573,90309.0,90308.0,0.44567]
[1765683759646,0.13723573,90309.0,90308.0,0.08487]
[1765683759846,0.13723573,90309.0,90308.0,0.44567]
[1765683762038,0.13723573,90309.0,90308.0,0.08487]
[1765683762238,0.13723573,90309.0,90308.0,0.44567]
[1765683762648,0.13723573,90309.0,90308.0,0.08487]
[1765683762848,0.13723573,90309.0,90308.0,0.44567]
[1765683764559,0.13723573,90309.0,90308.0,0.08487]
[1765683764761,0.13723573,90309.0,90308.0,0.44567]
[1765683768463,0.13723573,90309.0,90308.0,0.08487]
[1765683768855,0.13723573,90309.0,90308.0,0.44567]
[1765683770650,0.05455573,90309.0,90308.0,0.44567]
[1765683770856,0.05455573,90309.0,90308.0,0.48968346]
[1765683771057,0.08246573,90309.0,90308.0,0.48968346]
[1765683771256,0.10021573,90309.0,90308.0,0.44567]
[1765683771457,0.10021573,90309.0,90308.0,0.48968111]
[1765683771665,0.10021573,90309.0,90308.0,0.48979483]
[1765683772263,0.10021573,90309.0,90308.0,0.44567]
[1765683772665,0.10021573,90309.0,90308.0,0.48979483]
[1765683773662,0.10021573,90309.0,90308.0,0.44567]
[1765683773863,0.10021573,90309.0,90308.0,0.48947898]
[1765683774865,0.10021573,90309.0,90308.0,0.48941413]
[1765683776164,0.10021573,90309.0,90308.0,0.08487]
[1765683776464,0.10021573,90309.0,90308.0,0.1290057]
[1765683776665,0.10021573,90309.0,90308.0,0.08487]
[1765683776865,0.10021573,90309.0,90308.0,0.1290057]
[1765683777366,0.10021573,90309.0,90308.0,0.12897864]
[1765683778663,0.10021573,90309.0,90308.0,0.12949222]
[1765683778863,0.10021573,90309.0,90308.0,0.08487]
[1765683779064,0.10021573,90309.0,90308.0,0.12949222]
[1765683779765,0.10021573,90309.0,90308.0,0.12900385]
[1765683780165,0.10021573,90309.0,90308.0,0.08487]
[1765683780368,0.10021573,90309.0,90308.0,0.12900385]
[1765683781057,0.10021573,90309.0,90308.0,0.08487]
[1765683781260,0.10021573,90309.0,90308.0,0.12902181]
[1765683782668,0.02480573,90309.0,90308.0,0.1281575]
[1765683783269,0.02480573,90309.0,90308.0,0.08487]
[1765683783472,0.02480573,90309.0,90308.0,0.1281575]
[1765683783669,0.02480573,90309.0,90308.0,0.12799223]
[1765683784868,0.02480573,90309.0,90308.0,0.12852404]
[1765683785672,0.02480573,90309.0,90308.0,0.08487]
[1765683785861,0.02480573,90309.0,90308.0,0.12852404]
[1765683787074,0.02480573,90309.0,90308.0,0.12791948]
[1765683787371,0.02480573,90309.0,90308.0,0.08487]
[1765683788474,0.02480573,90309.0,90308.0,0.44567]
[1765683789373,0.02480573,90309.0,90308.0,0.48873964]
[1765683790975,0.02480573,90309.0,90308.0,0.48995968]
[1765683791175,0.02480573,90309.0,90308.0,0.44567]
[1765683791376,0.02480573,90309.0,90308.0,0.48995968]
[1765683791765,0.02480573,90309.0,90308.0,0.08487]
[1765683791967,0.02480573,90309.0,90308.0,0.44567]
[1765683794078,0.02480573,90309.0,90308.0,0.08487]
[1765683794373,0.02480573,90309.0,90308.0,0.44567]
[1765683802574,0.02480573,90309.0,90308.0,0.08487]
[1765683802768,0.02480573,90309.0,90308.0,0.44567]
[1765683811476,0.001,90309.0,90308.0,0.44567]
[1765683811677,0.02485651,90309.0,90308.0,0.44567]
[1765683815186,0.02485651,90309.0,90308.0,0.50546965]
[1765683821995,0.09888651,90309.0,90308.0,0.50546965]
[1765683822194,0.09888651,90309.0,90308.0,0.44567]
[1765683826303,0.09888651,90309.0,90308.0,0.40446]
[1765683826801,0.09888651,90309.0,90308.0,0.04366]
[1765683827101,0.09888651,90309.0,90308.0,0.73442]
[1765683828704,0.09888651,90309.0,90308.0,0.76393]
[1765683836207,0.09888651,90309.0,90308.0,0.07317]
[1765683905462,0.09888651,90309.0,90308.0,0.43397]
[1765683910669,0.09888651,90309.0,90308.0,0.07317]
[1765683910969,0.09888651,90309.0,90308.0,0.43397]
[1765683911768,0.09888651,90309.0,90308.0,0.07317]
[1765683911968,0.09888651,90309.0,90308.0,0.43397]
[1765683912570,0.09888651,90309.0,90308.0,0.07317]
[1765683912869,0.09888651,90309.0,90308.0,0.43397]
[1765683913063,0.09888651,90309.0,90308.0,0.07317]
[1765683913273,0.09888651,90309.0,90308.0,0.43397]
[1765683913469,0.09888651,90309.0,90308.0,0.07317]
[1765683913871,0.09888651,90309.0,90308.0,0.43397]
[1765683920776,0.09888651,90309.0,90308.0,0.07317]
[1765683920973,0.09888651,90309.0,90308.0,0.43397]
[1765683922371,0.09888651,90309.0,90308.0,0.07317]
[1765683922681,0.09888651,90309.0,90308.0,0.43397]
[1765683923775,0.09888651,90309.0,90308.0,0.07317]
[1765683923982,0.09888651,90309.0,90308.0,0.43397]
[1765683926778,0.09888651,90309.0,90308.0,0.07317]
[1765683926980,0.09888651,90309.0,90308.0,0.43397]
[1765683929484,0.09888651,90309.0,90308.0,0.07317]
[1765683929983,0.09888651,90309.0,90308.0,0.43397]
[1765683936387,0.09888651,90309.0,90308.0,0.07317]
[1765683936588,0.09888651,90309.0,90308.0,0.43397]
[1765683939091,0.09888651,90309.0,90308.0,0.07317]
[1765683939291,0.09888651,90309.0,90308.0,0.43397]
[1765683942386,0.09888651,90309.0,90308.0,0.07317]
[1765683942592,0.09888651,90309.0,90308.0,0.43397]
[1765683942787,0.09888651,90309.0,90308.0,0.07317]
[1765683942992,0.09888651,90309.0,90308.0,0.43397]
[1765683943992,0.09888651,90309.0,90308.0,0.07317]
[1765683944197,0.09888651,90309.0,90308.0,0.43397]
[1765683944496,0.09888651,90309.0,90308.0,0.07317]
[1765683944697,0.09888651,90309.0,90308.0,0.43397]
[1765683945397,0.09888651,90309.0,90308.0,0.07317]
[1765683945786,0.09888651,90309.0,90308.0,0.43397]
[1765683946399,0.09888651,90309.0,90308.0,0.07317]
[1765683946698,0.09888651,90309.0,90308.0,0.43397]
[1765683947496,0.09888651,90309.0,90308.0,0.07317]
[1765683947695,0.09888651,90309.0,90308.0,0.43397]
[1765683949396,0.09888651,90309.0,90308.0,0.07317]
[1765683949898,0.09888651,90309.0,90308.0,0.43397]
[1765683950698,0.09888651,90309.0,90308.0,0.07317]
[1765683951000,0.09888651,90309.0,90308.0,0.43397]
[1765683955702,0.09888651,90309.0,90308.0,0.07317]
[1765683955896,0.09888651,90309.0,90308.0,0.43397]
[1765683957503,0.09888651,90309.0,90308.0,0.07317]
[1765683957710,0.09888651,90309.0,90308.0,0.43397]
[1765683958613,0.09888651,90309.0,90308.0,0.07317]
[1765683958910,0.09888651,90309.0,90308.0,0.43397]
[1765683961518,0.09888651,90309.0,90308.0,0.07317]
[1765683961703,0.09888651,90309.0,90308.0,0.43397]
[1765683965019,0.09888651,90309.0,90308.0,0.07317]
[1765683965208,0.09888651,90309.0,90308.0,0.43397]
[1765683965712,0.09888651,90309.0,90308.0,0.07317]
[1765683965906,0.09888651,90309.0,90308.0,0.43397]
[1765683966517,0.09888651,90309.0,90308.0,0.07317]
[1765683966813,0.09888651,90309.0,90308.0,0.43397]
[1765683967520,0.09888651,90309.0,90308.0,0.07317]
[1765683967717,0.09888651,90309.0,90308.0,0.43397]
[1765683968018,0.09888651,90309.0,90308.0,0.07317]
[1765683968221,0.09888651,90309.0,90308.0,0.43397]
[1765683970425,0.09888651,90309.0,90308.0,0.07317]
[1765683970614,0.09888651,90309.0,90308.0,0.43397]
[1765683971026,0.09888651,90309.0,90308.0,0.07317]
[1765683971212,0.09888651,90309.0,90308.0,0.43397]
[1765683971619,0.09888651,90309.0,90308.0,0.07317]
[1765683971820,0.09888651,90309.0,90308.0,0.43397]
[1765683972726,0.09888651,90309.0,90308.0,0.07317]
[1765683972927,0.09888651,90309.0,90308.0,0.43397]
[1765683975730,0.09888651,90309.0,90308.0,0.07317]
[1765683975931,0.09888651,90309.0,90308.0,0.43397]
[1765683981025,0.09888651,90309.0,90308.0,0.07317]
[1765683981232,0.09888651,90309.0,90308.0,0.43397]
[1765683991336,0.09888651,90309.0,90308.0,0.07317]
[1765683991529,0.09888651,90309.0,90308.0,0.43397]
[1765683992039,0.09888651,90309.0,90308.0,0.07317]
[1765683992236,0.09888651,90309.0,90308.0,0.43397]
[1765683992431,0.09888651,90309.0,90308.0,0.07317]
[1765683992636,0.09888651,90309.0,90308.0,0.43397]
[1765683994038,0.09888651,90309.0,90308.0,0.07317]
[1765683994242,0.09888651,90309.0,90308.0,0.43397]
[1765683995342,0.09888651,90309.0,90308.0,0.07317]
[1765683995549,0.09888651,90309.0,90308.0,0.43397]
[1765683996050,0.09888651,90309.0,90308.0,0.07317]
[1765683996252,0.09888651,90309.0,90308.0,0.43397]
[1765683996653,0.09888651,90309.0,90308.0,0.07317]
[1765683996950,0.09888651,90309.0,90308.0,0.43397]
[1765683997854,0.09916265,90309.0,90308.0,0.43397]
[1765683999052,0.09916265,90309.0,90308.0,0.07317]
[1765683999351,0.09916265,90309.0,90308.0,0.43397]
[1765684000053,0.09916265,90309.0,90308.0,0.07317]
[1765684000247,0.09916265,90309.0,90308.0,0.43397]
[1765684002650,0.09916265,90309.0,90308.0,0.07317]
[1765684002857,0.09916265,90309.0,90308.0,0.43397]
[1765684003358,0.09916265,90309.0,90308.0,0.07317]
[1765684003859,0.09916265,90309.0,90308.0,0.43397]
[1765684004557,0.09916265,90309.0,90308.0,0.07317]
[1765684004760,0.09916265,90309.0,90308.0,0.43397]
[1765684010061,0.09916265,90309.0,90308.0,0.07317]
[1765684010261,0.09916265,90309.0,90308.0,0.43397]
[1765684011062,0.09916265,90309.0,90308.0,0.07317]
[1765684011361,0.09916265,90309.0,90308.0,0.43397]
[1765684015369,0.09916265,90309.0,90308.0,0.07317]
[1765684015669,0.09916265,90309.0,90308.0,0.43397]
[1765684016070,0.09916265,90309.0,90308.0,0.07317]
[1765684016370,0.09916265,90309.0,90308.0,0.43397]
[1765684018774,0.09916265,90309.0,90308.0,0.07317]
[1765684018961,0.09916265,90309.0,90308.0,0.43397]
[1765684020675,0.09916265,90309.0,90308.0,0.07317]
[1765684020877,0.09916265,90309.0,90308.0,0.43397]
[1765684021178,0.09916265,90309.0,90308.0,0.07317]
[1765684037085,0.09916265,90309.0,90308.0,0.43397]
[1765684043889,0.09912971,90309.0,90308.0,0.43397]
[1765684046992,0.09912971,90309.0,90308.0,0.07317]
[1765684047199,0.09912971,90309.0,90308.0,0.43397]
[1765684047400,0.09912971,90309.0,90308.0,0.07317]
[1765684047599,0.09912971,90309.0,90308.0,0.43397]
[1765684048395,0.09912971,90309.0,90308.0,0.07317]
[1765684048592,0.09912971,90309.0,90308.0,0.43397]
[1765684052103,0.09912971,90309.0,90308.0,0.07317]
[1765684052302,0.09912971,90309.0,90308.0,0.43397]
[1765684053102,0.09912971,90309.0,90308.0,0.07317]
[1765684053307,0.09912971,90309.0,90308.0,0.43397]
[1765684054604,0.09912971,90309.0,90308.0,0.07317]
[1765684054809,0.09912971,90309.0,90308.0,0.43397]
[1765684056707,0.09912971,90309.0,90308.0,0.07317]
[1765684056905,0.09912971,90309.0,90308.0,0.43397]
[1765684057604,0.09912971,90309.0,90308.0,0.07317]
[1765684057905,0.09912971,90309.0,90308.0,0.43397]
[1765684059406,0.09912971,90309.0,90308.0,0.07317]
[1765684059606,0.09912971,90309.0,90308.0,0.43397]
[1765684064509,0.09912971,90309.0,90308.0,0.07317]
[1765684064707,0.09912971,90309.0,90308.0,0.43397]
[1765684070609,0.09912971,90309.0,90308.0,0.07317]
[1765684070911,0.09912971,90309.0,90308.0,0.43397]
[1765684072514,0.09912971,90309.0,90308.0,0.07317]
[1765684072707,0.09912971,90309.0,90308.0,0.43397]
[1765684073011,0.09912971,90309.0,90308.0,0.07317]
[1765684073313,0.09912971,90309.0,90308.0,0.43397]
[1765684074717,0.09912971,90309.0,90308.0,0.07317]
[1765684074910,0.09912971,90309.0,90308.0,0.43397]
[1765684076317,0.0990946,90309.0,90308.0,0.43397]
[1765684077518,0.0990946,90309.0,90308.0,0.07317]
[1765684077724,0.0990946,90309.0,90308.0,0.43397]
[1765684078018,0.0990946,90309.0,90308.0,0.07317]
[1765684078220,0.0990946,90309.0,90308.0,0.43397]
[1765684078525,0.0990946,90309.0,90308.0,0.07317]
[1765684078709,0.0990946,90309.0,90308.0,0.43397]
[1765684085024,0.0990946,90309.0,90308.0,0.07317]
[1765684085229,0.0990946,90309.0,90308.0,0.43397]
[1765684097028,0.0990946,90309.0,90308.0,0.07317]
[1765684100430,0.0990946,90309.0,90308.0,0.43397]
[1765684104647,0.0990946,90309.0,90308.0,0.07317]
[1765684104941,0.0990946,90309.0,90308.0,0.43397]
[1765684106143,0.09915035,90309.0,90308.0,0.43397]
[1765684107740,0.09915035,90309.0,90308.0,0.07317]
[1765684107938,0.09915035,90309.0,90308.0,0.43397]
[1765684109359,0.09915035,90309.0,90308.0,0.07317]
[1765684109547,0.09915035,90309.0,90308.0,0.43397]
[1765684121347,0.09915035,90309.0,90308.0,0.07317]
[1765684121547,0.09915035,90309.0,90308.0,0.43397]
[1765684122041,0.09915035,90309.0,90308.0,0.07317]
[1765684122340,0.09915035,90309.0,90308.0,0.43397]
[1765684127549,0.09915035,90309.0,90308.0,0.07317]
[1765684132851,0.09915035,90309.0,90308.0,0.43397]
[1765684136346,0.09915035,90309.0,90308.0,0.07317]
[1765684136546,0.09915035,90309.0,90308.0,0.43397]
[1765684138657,0.09915035,90309.0,90308.0,0.07317]
[1765684138956,0.09915035,90309.0,90308.0,0.43397]
[1765684139363,0.09915035,90309.0,90308.0,0.07317]
[1765684139552,0.09915035,90309.0,90308.0,0.43397]
[1765684139751,0.09915035,90309.0,90308.0,0.07317]
[1765684139953,0.09915035,90309.0,90308.0,0.43397]
[1765684145358,0.09915035,90309.0,90308.0,0.07317]
[1765684145557,0.09915035,90309.0,90308.0,0.43397]
[1765684145762,0.09915035,90309.0,90308.0,0.07317]
[1765684145959,0.09915035,90309.0,90308.0,0.43397]
[1765684146358,0.09915035,90309.0,90308.0,0.07317]
[1765684146657,0.09915035,90309.0,90308.0,0.43397]
[1765684151057,0.09915035,90309.0,90308.0,0.07317]
[1765684151362,0.09915035,90309.0,90308.0,0.43397]
[1765684153565,0.09915035,90309.0,90308.0,0.07317]
[1765684153862,0.09915035,90309.0,90308.0,0.43397]
[1765684154367,0.09915035,90309.0,90308.0,0.07317]
[1765684154563,0.09915035,90309.0,90308.0,0.43397]
[1765684155665,0.09915035,90309.0,90308.0,0.07317]
[1765684155971,0.09915035,90309.0,90308.0,0.43397]
[1765684156455,0.09915035,90309.0,90308.0,0.07317]
[1765684156650,0.09915035,90309.0,90308.0,0.43397]
[1765684157660,0.09915035,90309.0,90308.0,0.07317]
[1765684157962,0.09915035,90309.0,90308.0,0.43397]
[1765684159161,0.09915035,90309.0,90308.0,0.07317]
[1765684168476,0.07128,90304.0,90303.0,0.7597028]
[1765684168663,0.09540035,90304.0,90303.0,0.7597028]
[1765684171883,0.09640035,90304.0,90303.0,0.7597028]
[1765684172782,0.09740035,90304.0,90303.0,0.7597028]
[1765684173476,0.09740035,90304.0,90303.0,0.6908]
[1765684173787,0.01648,90290.0,90289.0,0.6908]
[1765684173976,0.43208,90290.0,90289.0,0.74863]
[1765684174285,0.45620035,90290.0,90289.0,0.74863]
[1765684175083,0.09540035,90290.0,90289.0,0.74963]
[1765684175582,0.09540035,90290.0,90289.0,0.74863]
[1765684176181,0.09540035,90290.0,90289.0,0.7597046]
[1765684202199,0.02412035,90290.0,90289.0,0.7597046]
[1765684202504,0.08722984,90304.0,90298.0,0.05722]
[1765684202696,0.02449634,90303.0,90298.0,0.05722]
[1765684203004,0.02449634,90302.0,90298.0,0.05722]
[1765684203204,0.02466243,90299.0,90298.0,0.05722]
[1765684203792,0.05381243,90299.0,90298.0,0.05722]
[1765684204099,0.08101243,90299.0,90298.0,0.05722]
[1765684204801,0.08201243,90299.0,90298.0,0.05722]
[1765684205396,0.08202332,90299.0,90298.0,0.05722]
[1765684227510,0.02667332,90299.0,90298.0,0.05722]
[1765684227716,0.05661332,90299.0,90298.0,0.05722]
[1765684228022,0.08370332,90299.0,90298.0,0.05722]
[1765684228821,0.08270332,90299.0,90298.0,0.05722]
[1765684229022,0.08370332,90299.0,90298.0,0.05722]
[1765684230623,0.08270332,90299.0,90298.0,0.05722]
[1765684230824,0.08370332,90299.0,90298.0,0.05722]
[1765684254748,0.08370332,90299.0,90298.0,0.41802]
[1765684256745,0.08370332,90299.0,90298.0,0.05722]
[1765684256939,0.08370332,90299.0,90298.0,0.41802]
[1765684264643,0.07543,90306.0,90305.0,0.05786]
[1765684265938,0.07543,90306.0,90303.0,0.0110729]
[1765684265939,0.0756,90304.0,90303.0,0.0394229]
[1765684266133,0.0756,90304.0,90303.0,0.0689329]
[1765684267849,0.0766,90304.0,90303.0,0.0689329]
[1765684268646,0.0776,90304.0,90303.0,0.0689329]
[1765684276449,0.10157768,90304.0,90303.0,0.0689329]
[1765684340202,0.10157768,90304.0,90303.0,0.05786]
[1765684358730,0.07601,90303.0,90302.0,0.0110729]
[1765684358931,0.09998768,90303.0,90302.0,0.0110729]
[1765684359132,0.09998768,90303.0,90302.0,0.0391329]
[1765684359531,0.09998768,90303.0,90302.0,0.0669029]
[1765684360837,0.10098768,90303.0,90302.0,0.0669029]
[1765684370446,0.07601,90298.0,90297.0,0.691]
[1765684370648,0.09998768,90298.0,90297.0,0.691]
[1765684372047,0.09998768,90298.0,90297.0,0.71906]
[1765684372745,0.10098768,90298.0,90297.0,0.71906]
[1765684373550,0.10198768,90298.0,90297.0,0.74683]
[1765684377357,0.46278768,90298.0,90297.0,0.74683]
[1765684379554,0.10198768,90298.0,90297.0,0.74683]
[1765684379857,0.46278768,90298.0,90297.0,0.74683]
[1765684381344,0.46309202,90298.0,90297.0,0.74683]
[1765684383662,0.10229202,90298.0,90297.0,0.74683]
[1765684383847,0.46309202,90298.0,90297.0,0.74683]
[1765684384561,0.10229202,90298.0,90297.0,0.74683]
[1765684404866,0.04423202,90298.0,90297.0,0.74683]
[1765684405377,0.07274202,90298.0,90297.0,0.74683]
[1765684405573,0.10211202,90298.0,90297.0,0.74683]
[1765684413081,0.07783,90298.0,90297.0,0.74683]
[1765684413282,0.1020258,90298.0,90297.0,0.74683]
[1765684425585,0.0261958,90298.0,90297.0,0.74683]
[1765684428984,0.002,90298.0,90297.0,0.74683]
[1765684429186,0.02619888,90298.0,90297.0,0.74683]
[1765684449303,0.08836694,90310.0,90309.0,0.05812]
[1765684449511,0.07653,90310.0,90309.0,0.05812]
[1765684449709,0.07653,90303.0,90302.0,0.41892]
[1765684450016,0.43733,90303.0,90302.0,0.05812]
[1765684451007,0.05856,90301.0,90300.0,0.00016609]
[1765684451202,0.05856,90301.0,90300.0,0.02889609]
[1765684451408,0.05856,90301.0,90300.0,0.05828609]
[1765684452715,0.05956,90301.0,90300.0,0.05828609]
[1765684453016,0.06056,90301.0,90300.0,0.05828609]
[1765684453608,0.42136,90301.0,90300.0,0.05828609]
[1765684459523,0.06056,90301.0,90300.0,0.05828609]
[1765684461418,0.08445949,90301.0,90300.0,0.05828609]
[1765684463522,0.08445949,90301.0,90300.0,0.06935939]
[1765684479145,0.10118949,90301.0,90300.0,0.06935939]
[1765684498156,0.10095842,90301.0,90300.0,0.06935939]
[1765684520681,0.07729,90301.0,90300.0,0.06935939]
[1765684520867,0.10095991,90301.0,90300.0,0.06935939]
[1765684538586,0.10095991,90301.0,90300.0,0.05828609]
[1765684538787,0.16071723,90301.0,90300.0,0.05828609]
[1765684538986,0.10095991,90301.0,90300.0,0.05828609]
[1765684543097,0.10095991,90301.0,90300.0,0.06935929]
[1765684544895,0.10095991,90301.0,90300.0,0.05828609]
[1765684604364,0.11203301,90301.0,90300.0,0.00016609]
[1765684604769,0.11203301,90301.0,90300.0,0.02760609]
[1765684605070,0.11187144,90301.0,90300.0,0.02760609]
[1765684605861,0.11187144,90301.0,90300.0,0.00016609]
[1765684607270,0.11187144,90301.0,90300.0,0.02760609]
[1765684609177,0.11187144,90301.0,90300.0,0.05593609]
[1765684619194,0.10079834,90301.0,90300.0,0.05593609]
[1765684619987,0.11187144,90301.0,90300.0,0.05593609]
[1765684620396,0.10079834,90301.0,90300.0,0.05593609]
[1765684642416,0.10092815,90301.0,90300.0,0.05593609]
[1765684670626,0.16068547,90301.0,90300.0,0.05593609]
[1765684674140,0.10092815,90301.0,90300.0,0.05593609]
[1765684678443,0.07729,90301.0,90300.0,0.05593609]
[1765684679248,0.10083425,90301.0,90300.0,0.05593609]
[1765684679744,0.46163425,90301.0,90300.0,0.05593609]
[1765684683336,0.10083425,90301.0,90300.0,0.05593609]
[1765684688857,0.07729,90301.0,90300.0,0.05593609]
[1765684689056,0.10083176,90301.0,90300.0,0.05593609]
[1765684707066,0.09983176,90301.0,90300.0,0.05593609]
[1765684707272,0.10083176,90301.0,90300.0,0.05593609]
[1765684707660,0.09983176,90301.0,90300.0,0.05593609]
[1765684708061,0.10083176,90301.0,90300.0,0.05593609]
[1765684709080,0.09983176,90301.0,90300.0,0.05593609]
[1765684709371,0.10083176,90301.0,90300.0,0.05593609]
[1765684742606,0.10083176,90301.0,90300.0,0.02760609]
[1765684743294,0.10083176,90301.0,90300.0,0.00016609]
[1765684743609,0.10083176,90301.0,90300.0,0.02850609]
[1765684748410,0.10083176,90301.0,90300.0,0.05716609]
[1765684757212,0.46163176,90301.0,90300.0,0.05716609]
[1765684758719,0.10083176,90301.0,90300.0,0.05716609]
[1765684758910,0.46163176,90301.0,90300.0,0.05716609]
[1765684761316,0.52140773,90301.0,90300.0,0.05716609]
[1765684764212,0.52140773,90301.0,90300.0,0.00016609]
[1765684769320,0.16060773,90301.0,90300.0,0.00016609]
[1765684769528,0.52140773,90301.0,90300.0,0.00016609]
[1765684773022,0.16060773,90301.0,90300.0,0.00016609]
[1765684773229,0.52140773,90301.0,90300.0,0.00016609]
[1765684779531,0.52140773,90301.0,90300.0,0.02757609]
[1765684781332,0.52140773,90301.0,90300.0,0.00016609]
[1765684786737,0.16060773,90301.0,90300.0,0.00016609]
[1765684786936,0.52140773,90301.0,90300.0,0.00016609]
[1765684787738,0.16060773,90301.0,90300.0,0.00016609]
[1765684787939,0.52140773,90301.0,90300.0,0.00016609]
[1765684790042,0.46163176,90301.0,90300.0,0.00016609]
[1765684790437,0.46163176,90301.0,90300.0,0.02757609]
[1765684790741,0.46163176,90301.0,90300.0,0.00016609]
[1765684791041,0.52140944,90301.0,90300.0,0.00016609]
[1765684795447,0.16060944,90301.0,90300.0,0.00016609]
[1765684795745,0.52140944,90301.0,90300.0,0.00016609]
[1765684797653,0.46163176,90301.0,90300.0,0.00016609]
[1765684799351,0.10083176,90301.0,90300.0,0.00016609]
[1765684799855,0.46163176,90301.0,90300.0,0.00016609]
[1765684805757,0.46163176,90301.0,90300.0,0.02967609]
[1765684806057,0.46163176,90301.0,90300.0,0.00016609]
[1765684811559,0.46163176,90301.0,90297.0,0.691]
[1765684811560,0.07726,90298.0,90297.0,0.691]
[1765684811859,0.10080176,90298.0,90297.0,0.66499552]
[1765684812252,0.16056049,90298.0,90297.0,0.66499552]
[1765684813061,0.52136049,90298.0,90297.0,0.66499552]
[1765684813960,0.49781873,90298.0,90297.0,0.66499552]
[1765684814152,0.52380196,90298.0,90297.0,0.66499552]
[1765684815555,0.52280196,90298.0,90297.0,0.66499552]
[1765684815756,0.52380196,90298.0,90297.0,0.66499552]
[1765684818067,0.46404323,90298.0,90297.0,0.66499552]
[1765684820469,0.10324323,90298.0,90297.0,0.66499552]
[1765684820763,0.46404323,90298.0,90297.0,0.66499552]
[1765684823169,0.46404323,90298.0,90297.0,0.70925699]
[1765684823572,0.46404323,90298.0,90297.0,0.7097212]
[1765684824677,0.46404323,90298.0,90297.0,0.7393912]
[1765684824972,0.46404323,90298.0,90297.0,0.69466552]
[1765684825574,0.46404323,90298.0,90297.0,0.7392408]
[1765684825969,0.46404323,90298.0,90297.0,0.73885883]
[1765684826270,0.46404323,90298.0,90297.0,0.76780156]
[1765684827575,0.46404323,90298.0,90297.0,0.72361552]
[1765684828476,0.46404323,90298.0,90297.0,0.76829004]
[1765684828677,0.10324323,90298.0,90297.0,0.76829004]
[1765684828879,0.46404323,90298.0,90297.0,0.76829004]
[1765684830170,0.46404323,90298.0,90297.0,0.76776091]
[1765684830682,0.10324323,90298.0,90297.0,0.76776091]
[1765684831484,0.10324323,90298.0,90297.0,0.72361552]
[1765684831682,0.10324323,90298.0,90297.0,0.76697267]
[1765684832680,0.10324323,90298.0,90297.0,0.76723911]
[1765684834595,0.10324323,90298.0,90297.0,0.76680682]
[1765684836100,0.10324323,90298.0,90297.0,0.72361552]
[1765684837295,0.10324323,90298.0,90297.0,0.76790913]
[1765684837501,0.10324323,90298.0,90297.0,0.72361552]
[1765684837703,0.10324323,90298.0,90297.0,0.76806901]
[1765684839002,0.10324323,90298.0,90297.0,0.76661725]
[1765684840206,0.16300196,90298.0,90297.0,0.76661725]
[1765684840406,0.16300196,90298.0,90297.0,0.76666097]
[1765684842605,0.16300196,90298.0,90297.0,0.76718271]
[1765684843508,0.16300196,90298.0,90297.0,0.72361552]
[1765684843802,0.16300196,90298.0,90297.0,0.76744492]
[1765684845207,0.16300196,90298.0,90297.0,0.72361552]
[1765684845399,0.16300196,90298.0,90297.0,0.76713232]
[1765684845806,0.16300196,90298.0,90297.0,0.72361552]
[1765684846706,0.16300196,90298.0,90297.0,0.76713232]
[1765684847703,0.16300196,90298.0,90297.0,0.72361552]
[1765684848708,0.16300196,90298.0,90297.0,0.76664653]
[1765684848906,0.16300196,90298.0,90297.0,0.76764915]
[1765684849509,0.16300196,90298.0,90297.0,0.72361552]